bitfinex/quotes_SOLUSD_20250204
["timestamp","ask_amount","ask_price","bid_price","bid_amount"]
[1738656699902,0.25098,205.39,205.38,0.063]
[1738656700519,5.07173459,205.39,205.38,0.063]
[1738656700736,33.52018312,205.39,205.38,0.0001]
[1738656701040,0.12549,205.37,205.36,0.0431]
[1738656701249,22.82600619,205.37,205.36,0.0431]
[1738656701826,27.69520619,205.37,205.36,0.0431]
[1738656702234,32.51596078,205.37,205.36,0.0431]
[1738656702419,0.12549,205.33,205.32,0.063]
[1738656702738,22.82600619,205.33,205.32,0.063]
[1738656702953,22.95149619,205.33,205.32,0.063]
[1738656703437,20.0,205.3,205.19,22.70051619]
[1738656703762,22.70051619,205.27,205.2,30.0]
[1738656704045,22.70051619,205.23,205.17,0.063]
[1738656704220,22.70051619,205.21,205.17,0.063]
[1738656704421,22.70051619,205.19,205.17,0.063]
[1738656705113,0.25098,205.18,205.17,0.063]
[1738656705314,13.66282853,205.18,205.17,0.0001]
[1738656705510,13.66282853,205.18,205.16,0.0001]
[1738656705730,22.82600619,205.17,205.16,0.0001]
[1738656706128,27.70000619,205.17,205.16,0.0001]
[1738656706331,46.05976933,205.17,205.16,0.0001]
[1738656706570,0.12549,205.13,205.02,25.13556403]
[1738656706867,22.70051619,205.1,205.02,22.70051619]
[1738656707639,22.70051619,205.12,205.04,27.57751619]
[1738656707842,22.70051619,205.16,205.08,22.70051619]
[1738656708056,22.70051619,205.22,205.14,22.70051619]
[1738656708377,22.70051619,205.18,205.1,22.70051619]
[1738656709235,22.70051619,205.22,205.14,22.70051619]
[1738656710041,22.70051619,205.26,205.18,22.70051619]
[1738656710272,27.57241619,205.26,205.18,22.70051619]
[1738656710573,22.70051619,205.26,205.18,22.70051619]
[1738656710737,22.70051619,205.28,205.2,22.70051619]
[1738656710935,22.70051619,205.26,205.18,22.70051619]
[1738656711480,22.70051619,205.28,205.2,22.70051619]
[1738656711643,22.70051619,205.26,205.18,22.70051619]
[1738656711978,22.70051619,205.26,205.18,27.57411619]
[1738656712152,22.70051619,205.28,205.2,22.70051619]
[1738656712351,27.57191619,205.28,205.2,22.70051619]
[1738656712666,0.03,205.22,205.2,22.70051619]
[1738656714157,47.57171619,205.29,205.2,22.70051619]
[1738656714485,22.70051619,205.33,205.24,22.70051619]
[1738656714774,22.70051619,205.33,205.26,22.70051619]
[1738656714949,27.57081619,205.33,205.26,22.70051619]
[1738656715366,22.70051619,205.33,205.26,22.70051619]
[1738656716674,22.70051619,205.35,205.26,27.57231619]
[1738656716870,22.70051619,205.37,205.28,22.70051619]
[1738656717075,27.56971619,205.37,205.28,22.70051619]
[1738656717964,22.70051619,205.35,205.26,22.70051619]
[1738656718158,22.70051619,205.33,205.26,22.70051619]
[1738656718389,22.70051619,205.29,205.2,22.70051619]
[1738656718592,0.12549,205.3,205.14,13.2497]
[1738656718593,22.70051619,205.27,205.18,22.70051619]
[1738656718966,22.70051619,205.27,205.16,1.0]
[1738656718967,22.70051619,205.29,205.21,22.70051619]
[1738656719263,22.70051619,205.25,205.17,22.70051619]
[1738656719468,0.12549,205.26,205.14,0.063]
[1738656719469,22.70051619,205.22,205.14,0.063]
[1738656720396,4.873,205.21,205.14,0.063]
[1738656720602,22.70051619,205.2,205.14,0.063]
[1738656721003,4.873,205.21,205.14,0.063]
[1738656721308,22.70051619,205.24,205.16,22.70051619]
[1738656721490,22.70051619,205.22,205.14,0.063]
[1738656721683,22.70051619,205.18,205.14,0.063]
[1738656721898,22.70051619,205.16,205.14,0.063]
[1738656722603,27.57491619,205.16,205.14,0.063]
[1738656723174,13.66282853,205.15,205.14,0.0001]
[1738656723777,20.0,205.12,205.07,0.063]
[1738656723983,22.82600619,205.08,205.07,0.063]
[1738656724803,36.36334472,205.08,205.07,0.063]
[1738656724982,22.70051619,205.03,205.01,0.063]
[1738656725389,0.12549,205.02,205.01,0.063]
[1738656725989,0.25098,205.02,205.01,0.063]
[1738656726175,13.66282853,205.02,205.01,0.063]
[1738656726378,51.61034472,205.02,205.01,0.0001]
[1738656726592,28.90982853,205.02,205.01,0.0001]
[1738656727707,10.49499,205.02,205.01,0.0001]
[1738656728007,24.03232853,205.02,205.01,0.0001]
[1738656728478,22.70051619,205.03,205.01,0.0001]
[1738656728680,37.08770119,205.03,205.01,0.0001]
[1738656729196,37.08770119,204.97,204.95,0.063]
[1738656730107,0.25098,204.96,204.95,0.063]
[1738656730315,13.66282853,204.96,204.95,0.063]
[1738656730488,24.66582853,204.96,204.95,0.0001]
[1738656730689,23.66582853,204.96,204.95,0.0001]
[1738656731117,13.66282853,204.92,204.86,0.063]
[1738656731305,37.08770119,204.9,204.86,0.063]
[1738656733131,37.08770119,204.94,204.86,0.063]
[1738656733423,37.08770119,204.94,204.87,37.08770119]
[1738656733722,37.08770119,204.92,204.86,0.063]
[1738656733913,37.08770119,204.9,204.86,0.063]
[1738656735026,37.08770119,204.88,204.86,0.063]
[1738656735204,0.12549,204.87,204.86,0.063]
[1738656735701,13.66282853,204.87,204.86,0.063]
[1738656736097,18.54392853,204.87,204.86,0.063]
[1738656737119,37.08770119,204.88,204.86,0.063]
[1738656737525,0.12549,204.87,204.86,0.063]
[1738656738331,37.08770119,204.88,204.86,0.063]
[1738656738829,37.08770119,204.9,204.86,0.063]
[1738656739405,0.12549,204.89,204.86,0.063]
[1738656739600,37.08770119,204.9,204.86,0.063]
[1738656740026,0.25098,204.91,204.86,0.063]
[1738656740228,37.08770119,204.92,204.86,0.063]
[1738656740522,37.08770119,204.94,204.87,37.08770119]
[1738656740725,37.08770119,204.96,204.89,37.08770119]
[1738656741310,20.0,204.95,204.89,37.08770119]
[1738656741515,37.21319119,204.98,204.89,37.08770119]
[1738656742030,37.08770119,204.98,204.86,0.063]
[1738656742236,37.08770119,205.02,204.93,37.08770119]
[1738656742410,37.08770119,205.02,204.9,12.201]
[1738656742411,47.65410119,205.06,204.97,37.08770119]
[1738656742729,37.08770119,205.08,204.99,37.08770119]
[1738656742931,37.08770119,205.06,204.99,37.08770119]
[1738656743229,37.08770119,205.06,204.97,37.08770119]
[1738656743819,37.08770119,205.08,205.01,37.08770119]
[1738656744020,37.08770119,205.1,205.01,37.08770119]
[1738656744222,37.08770119,205.1,205.02,4.8775]
[1738656744433,37.08770119,205.12,205.05,37.08770119]
[1738656744658,37.08770119,205.16,205.07,37.08770119]
[1738656744826,37.08770119,205.16,205.09,37.08770119]
[1738656745218,0.12549,205.15,205.09,37.08770119]
[1738656745449,37.08770119,205.18,205.09,37.08770119]
[1738656746033,0.12549,205.17,205.09,37.08770119]
[1738656746452,50.65503972,205.2,205.11,37.08770119]
[1738656746751,0.25098,205.19,205.11,37.08770119]
[1738656747121,50.52954972,205.2,205.11,37.08770119]
[1738656747122,37.11770119,205.2,205.11,37.08770119]
[1738656747318,0.03,205.2,205.17,37.08770119]
[1738656747541,0.03,205.2,205.19,37.08770119]
[1738656748328,0.03,205.2,205.17,1.0]
[1738656748329,37.08770119,205.32,205.26,4.8718]
[1738656748521,13.53733853,205.31,205.24,4.8722]
[1738656748925,37.08770119,205.34,205.25,37.08770119]
[1738656749227,10.2899,205.37,205.27,37.08770119]
[1738656749228,37.08770119,205.36,205.27,37.08770119]
[1738656749635,37.08770119,205.38,205.31,37.08770119]
[1738656749856,37.11770119,205.4,205.31,37.08770119]
[1738656750167,37.11770119,205.4,205.24,19.78358541]
[1738656750168,37.11770119,205.4,205.33,37.08770119]
[1738656750323,37.11770119,205.4,205.33,41.95780119]
[1738656750527,0.03,205.4,205.35,37.08770119]
[1738656750729,0.03,205.4,205.33,4.8701]
[1738656750730,0.03,205.4,205.37,37.08770119]
[1738656750951,0.03,205.4,205.33,4.8701]
[1738656750952,0.03,205.4,205.39,37.08770119]
[1738656751148,0.03,205.4,205.35,37.08770119]
[1738656751349,0.03,205.4,205.33,37.08770119]
[1738656751665,0.03,205.4,205.35,37.08770119]
[1738656752665,13.53733853,205.39,205.33,37.08770119]
[1738656752871,13.53733853,205.39,205.12,24.00569925]
[1738656752872,37.08770119,205.34,205.27,37.08770119]
[1738656753365,0.12549,205.35,205.27,37.08770119]
[1738656753563,37.11770119,205.4,205.31,37.08770119]
[1738656753871,13.53733853,205.39,205.31,37.08770119]
[1738656754050,0.12549,205.38,205.31,37.08770119]
[1738656754250,13.53733853,205.39,205.31,37.08770119]
[1738656754448,13.53733853,205.37,205.31,37.08770119]
[1738656754666,4.8694,205.36,205.31,37.08770119]
[1738656755258,13.53733853,205.35,205.31,37.08770119]
[1738656755469,13.53733853,205.35,205.27,37.08770119]
[1738656755772,37.08770119,205.32,205.25,37.08770119]
[1738656755962,0.12549,205.31,205.25,37.08770119]
[1738656756167,0.12549,205.31,205.23,37.08770119]
[1738656756363,0.12549,205.31,205.25,37.08770119]
[1738656756546,37.08770119,205.38,205.3,37.08770119]
[1738656756742,37.08770119,205.36,205.28,37.08770119]
[1738656756947,37.08770119,205.33,205.25,37.08770119]
[1738656757368,37.08770119,205.31,205.23,37.08770119]
[1738656757562,37.08770119,205.29,205.21,37.08770119]
[1738656757965,37.08770119,205.27,205.17,37.08770119]
[1738656758162,37.08770119,205.23,205.18,30.0]
[1738656758469,37.08770119,205.25,205.18,30.0]
[1738656758679,37.08770119,205.27,205.19,37.08770119]
[1738656759262,57.08770119,205.27,205.19,37.08770119]
[1738656760671,61.95940119,205.27,205.18,0.063]
[1738656761380,37.08770119,205.33,205.25,37.08770119]
[1738656761594,37.08770119,205.33,205.2,1.0]
[1738656761595,41.95640119,205.39,205.31,37.08770119]
[1738656761886,37.08770119,205.35,205.27,37.08770119]
[1738656762447,37.08770119,205.33,205.25,37.08770119]
[1738656762765,4.8702,205.33,205.25,37.08770119]
[1738656763146,4.8702,205.33,205.19,0.73070155]
[1738656763147,20.0,205.28,205.18,4.9365]
[1738656763351,37.08770119,205.24,205.18,0.063]
[1738656763654,37.08770119,205.26,205.18,37.15070119]
[1738656763977,4.4,205.32,205.25,37.08770119]
[1738656764482,37.08770119,205.29,205.21,37.08770119]
[1738656764647,4.4,205.32,205.25,37.08770119]
[1738656764843,41.95760119,205.35,205.27,37.08770119]
[1738656765074,4.8699,205.35,205.27,37.08770119]
[1738656765265,41.95760119,205.35,205.25,37.08770119]
[1738656765457,2.0,205.29,205.24,37.08770119]
[1738656765651,1.0,205.27,205.24,37.08770119]
[1738656765875,1.0,205.27,205.2,37.08770119]
[1738656765876,1.0,205.24,205.2,37.08770119]
[1738656766081,1.0,205.24,205.18,37.08770119]
[1738656766471,1.0,205.25,205.22,37.08770119]
[1738656767258,13.41184853,205.29,205.22,41.96040119]
[1738656767259,1.0,205.28,205.22,41.96040119]
[1738656767454,1.0,205.29,205.24,37.08770119]
[1738656767681,2.0,205.33,205.28,37.08770119]
[1738656767866,2.0,205.35,205.3,37.08770119]
[1738656768484,1.0,205.33,205.3,37.08770119]
[1738656768679,1.0,205.37,205.3,41.95850119]
[1738656769984,1.0,205.35,205.3,41.95850119]
[1738656770362,2.0,205.35,205.3,41.95850119]
[1738656770689,1.0,205.35,205.32,37.08770119]
[1738656770889,15.41184853,205.39,205.32,41.95800119]
[1738656771689,0.03,205.37,205.32,41.95800119]
[1738656771860,0.03,205.37,205.36,37.08770119]
[1738656772677,0.03,205.4,205.36,74.17540238]
[1738656772877,0.03,205.4,205.39,79.04410238]
[1738656773067,0.03,205.4,205.39,41.95640119]
[1738656773881,0.03,205.4,205.39,79.04410238]
[1738656775792,0.03,205.48,205.39,91.94602796]
[1738656776093,0.03,205.48,205.46,37.08770119]
[1738656777165,1.03,205.48,205.44,37.08770119]
[1738656777563,0.03,205.48,205.46,37.08770119]
[1738656777800,0.03,205.48,205.46,37.81760879]
[1738656779087,0.03,205.48,205.46,37.08770119]
[1738656779466,0.03,205.48,205.46,41.95460119]
[1738656779883,0.03,205.48,205.46,37.08770119]
[1738656780089,0.03,205.48,205.46,41.95470119]
[1738656781320,0.03,205.48,205.42,37.08770119]
[1738656781504,1.0,205.44,205.39,30.0]
[1738656781709,1.0,205.44,205.38,41.95660119]
[1738656781895,0.03,205.48,205.42,37.08770119]
[1738656782215,0.03,205.48,205.39,0.73013157]
[1738656782216,0.03,205.48,205.46,37.08770119]
[1738656782589,0.03,205.48,205.44,37.08770119]
[1738656783793,0.03,205.48,205.44,41.95520119]
[1738656784011,0.03,205.48,205.46,37.08770119]
[1738656784219,0.03,205.48,205.46,37.81752318]
[1738656784395,0.0001,205.48,205.46,37.81752318]
[1738656784910,0.0001,205.48,205.46,37.08770119]
[1738656785497,0.0001,205.48,205.47,4.8668]
[1738656786313,1.0,205.47,205.42,37.08770119]
[1738656786497,1.0,205.47,205.38,37.08770119]
[1738656786498,37.08770119,205.46,205.38,37.08770119]
[1738656786696,1.0,205.45,205.38,37.08770119]
[1738656787111,1.0,205.45,205.4,37.08770119]
[1738656787310,0.0001,205.48,205.44,37.08770119]
[1738656787619,0.0001,205.48,205.46,37.08770119]
[1738656788694,0.0001,205.48,205.42,41.95570119]
[1738656788898,1.0,205.47,205.4,41.95600119]
[1738656789122,1.0,205.44,205.38,37.08770119]
[1738656789294,2.0,205.42,205.36,37.08770119]
[1738656789701,1.0,205.42,205.36,41.95710119]
[1738656790089,2.0,205.42,205.36,41.95710119]
[1738656790313,1.0,205.38,205.31,4.8705]
[1738656790625,1.0,205.36,205.28,41.95890119]
[1738656791128,1.0,205.36,205.3,37.08770119]
[1738656791714,1.0,205.38,205.34,37.08770119]
[1738656791914,1.0,205.37,205.34,37.08770119]
[1738656792127,2.0,205.41,205.34,37.08770119]
[1738656792313,1.0,205.37,205.34,37.08770119]
[1738656792504,2.0,205.37,205.32,37.08770119]
[1738656792707,2.0,205.37,205.3,4.8708]
[1738656793038,1.0,205.36,205.31,37.08770119]
[1738656793624,2.0,205.4,205.33,37.08770119]
[1738656793918,2.0,205.37,205.33,37.08770119]
[1738656794330,1.0,205.37,205.33,37.08770119]
[1738656794534,1.0,205.39,205.33,37.08770119]
[1738656794829,1.0,205.41,205.37,37.08770119]
[1738656795136,1.0,205.44,205.39,37.08770119]
[1738656795615,12.8389,205.48,205.43,37.08770119]
[1738656795811,1.0,205.46,205.43,37.08770119]
[1738656796007,1.0,205.46,205.34,0.063]
[1738656796008,1.0,205.43,205.39,37.08770119]
[1738656796327,2.0,205.41,205.37,37.08770119]
[1738656796704,2.0,205.41,205.35,41.95740119]
[1738656797009,13.41184853,205.46,205.34,0.063]
[1738656797010,2.0,205.35,205.34,0.063]
[1738656797208,15.41184853,205.35,205.34,0.063]
[1738656797424,2.0,205.35,205.34,0.063]
[1738656797721,2.0,205.39,205.34,0.063]
[1738656797919,4.26,205.45,205.36,37.08770119]
[1738656797920,1.0,205.41,205.36,37.08770119]
[1738656798297,1.0,205.43,205.38,37.08770119]
[1738656798499,1.0,205.45,205.4,37.08770119]
[1738656798720,1.0,205.46,205.41,22.72072481]
[1738656799117,1.0,205.45,205.43,22.72072481]
[1738656799305,10.8389,205.48,205.43,22.72072481]
[1738656799507,0.0001,205.48,205.47,22.72072481]
[1738656799715,0.0001,205.48,205.47,27.58752481]
[1738656800726,0.0001,205.48,205.47,61.74686358]
[1738656801038,0.0001,205.48,205.47,61.87235358]
[1738656801334,0.0001,205.51,205.5,20.0]
[1738656801496,0.0001,205.51,205.5,94.48966495]
[1738656801903,0.0001,205.51,205.5,99.48125495]
[1738656802621,0.0001,205.51,205.5,129.48125495]
[1738656802826,0.0001,205.51,205.5,128.75171716]
[1738656803928,0.0001,205.51,205.5,158.87720716]
[1738656804117,0.0001,205.51,205.5,128.62622716]
[1738656804511,0.0001,205.51,205.5,61.74616358]
[1738656804706,0.0001,205.51,205.5,98.62622716]
[1738656804928,0.0001,205.51,205.5,99.48139675]
[1738656805730,0.0001,205.51,205.5,99.35590675]
[1738656805905,0.0001,205.51,205.5,36.88006358]
[1738656807937,0.0001,205.51,205.5,73.76012716]
[1738656808308,0.0001,205.51,205.5,73.88561716]
[1738656809718,0.0001,205.51,205.5,74.01110716]
[1738656809921,0.0001,205.51,205.5,104.01110716]
[1738656810717,0.0001,205.51,205.5,117.42295569]
[1738656810919,0.03,205.58,205.57,36.88006358]
[1738656811639,0.03,205.61,205.57,36.88006358]
[1738656811951,0.03,205.61,205.6,36.88006358]
[1738656812417,0.03,205.61,205.55,12.1621]
[1738656812418,0.03,205.61,205.58,36.88006358]
[1738656812949,1.0,205.57,205.52,41.74546358]
[1738656813243,1.0,205.59,205.56,36.88006358]
[1738656813625,1.0,205.6,205.56,36.88006358]
[1738656813821,1.0,205.59,205.56,36.88006358]
[1738656814142,1.0,205.59,205.55,36.88006358]
[1738656814350,0.03,205.61,205.57,36.88006358]
[1738656814652,0.03,205.61,205.6,36.88006358]
[1738656815013,0.03,205.61,205.6,37.60935193]
[1738656815642,0.03,205.61,205.6,74.48941551]
[1738656815825,0.03,205.61,205.6,37.60935193]
[1738656816134,0.03,205.61,205.6,36.88006358]
[1738656816521,0.03,205.61,205.6,41.74386358]
[1738656818840,0.03,205.61,205.6,36.88006358]
[1738656819034,1.03,205.61,205.58,36.88006358]
[1738656819350,1.03,205.61,205.4,61.72139808]
[1738656819351,1.0,205.57,205.52,36.88006358]
[1738656819644,1.0,205.57,205.54,30.0]
[1738656819845,1.0,205.59,205.56,36.88006358]
[1738656820029,1.0,205.6,205.56,36.88006358]
[1738656820439,1.0,205.56,205.52,36.88006358]
[1738656821053,1.0,205.54,205.5,41.74606358]
[1738656821253,1.0,205.56,205.53,36.88006358]
[1738656821833,1.0,205.53,205.49,36.88006358]
[1738656822048,2.0,205.53,205.49,36.88006358]
[1738656822351,1.0,205.53,205.49,36.88006358]
[1738656822650,1.0,205.53,205.49,22.6981149]
[1738656822856,2.0,205.53,205.49,22.6981149]
[1738656823235,2.0,205.55,205.51,22.6981149]
[1738656823449,2.0,205.53,205.45,4.8673]
[1738656823655,2.0,205.53,205.46,22.6981149]
[1738656823656,1.0,205.5,205.46,22.6981149]
[1738656823859,1.0,205.52,205.46,22.6981149]
[1738656824064,1.0,205.52,205.48,22.6981149]
[1738656824838,1.0,205.54,205.51,22.6981149]
[1738656825031,1.0,205.53,205.51,22.6981149]
[1738656825230,1.0,205.53,205.49,22.6981149]
[1738656825458,1.0,205.49,205.46,22.6981149]
[1738656825959,1.0,205.44,205.43,0.063]
[1738656826340,23.6981149,205.44,205.43,0.063]
[1738656827266,28.5657149,205.44,205.43,0.063]
[1738656827636,23.6981149,205.44,205.43,0.063]
[1738656827840,1.0,205.44,205.43,0.063]
[1738656828443,23.6981149,205.44,205.43,0.063]
[1738656828851,37.10996343,205.44,205.43,0.063]
[1738656829170,0.25098,205.43,205.36,0.063]
[1738656829373,2.0,205.37,205.36,0.063]
[1738656830981,35.41184853,205.35,205.34,0.063]
[1738656831156,1.0,205.25,205.22,0.063]
[1738656831346,2.0,205.25,205.22,0.063]
[1738656831878,1.0,205.25,205.23,22.6981149]
[1738656832274,2.0,205.29,205.23,22.6981149]
[1738656832573,1.0,205.27,205.25,22.6981149]
[1738656832770,1.0,205.26,205.23,22.6981149]
[1738656832967,1.0,205.25,205.23,22.6981149]
[1738656833272,1.0,205.23,205.22,0.063]
[1738656835473,1.0,205.24,205.22,0.063]
[1738656835680,1.0,205.23,205.22,22.7611149]
[1738656835882,2.0,205.26,205.22,22.7611149]
[1738656836078,1.0,205.26,205.24,22.6981149]
[1738656836258,2.0,205.28,205.24,22.6981149]
[1738656836875,2.0,205.28,205.26,22.6981149]
[1738656837076,1.0,205.28,205.26,22.6981149]
[1738656837255,2.0,205.28,205.26,22.6981149]
[1738656838796,2.0,205.28,205.24,4.8722]
[1738656838797,2.0,205.25,205.22,22.7611149]
[1738656838962,2.0,205.23,205.22,0.063]
[1738656839375,6.8725,205.23,205.22,0.063]
[1738656840260,2.0,205.23,205.22,0.063]
[1738656840963,6.8725,205.23,205.22,0.063]
[1738656841285,2.0,205.23,205.22,0.063]
[1738656843565,6.8725,205.23,205.22,0.063]
[1738656843765,2.0,205.23,205.22,0.063]
[1738656845663,20.28434853,205.23,205.22,0.063]
[1738656846602,1.0,205.16,205.15,0.063]
[1738656846888,2.0,205.16,205.15,0.063]
[1738656847762,1.0,205.16,205.15,0.063]
[1738656848102,2.0,205.16,205.15,0.063]
[1738656849699,6.8742,205.16,205.15,0.063]
[1738656850406,43.8840653,205.16,205.15,0.063]
[1738656850695,2.25098,205.14,205.01,37.0728653]
[1738656850858,1.0,205.04,205.02,30.0]
[1738656851071,2.0,205.04,205.02,30.0]
[1738656852478,2.0,205.02,205.01,0.063]
[1738656852667,39.0098653,205.02,205.01,0.063]
[1738656853092,52.42171383,205.02,205.01,0.063]
[1738656853481,2.0,205.02,205.01,0.063]
[1738656853873,39.0098653,205.02,205.01,0.063]
[1738656854187,2.0,205.02,205.01,0.063]
[1738656854580,39.0098653,205.02,205.01,0.063]
[1738656854780,52.42171383,205.02,205.01,0.063]
[1738656855211,55.39439383,205.02,205.01,0.063]
[1738656855391,20.25098,204.98,204.97,0.063]
[1738656855710,76.55119383,204.98,204.97,0.063]
[1738656855910,77.55119383,204.98,204.97,0.063]
[1738656857207,15.66282853,204.93,204.92,0.063]
[1738656857523,63.14089383,204.93,204.92,0.063]
[1738656857704,63.14089383,204.93,204.92,0.0001]
[1738656858027,15.66282853,204.87,204.86,0.063]
[1738656858238,52.67269383,204.87,204.86,0.063]
[1738656859527,58.55379383,204.87,204.86,0.063]
[1738656859723,58.55379383,204.87,204.81,0.063]
[1738656859724,52.67269383,204.82,204.81,0.063]
[1738656860423,2.0,204.82,204.81,0.063]
[1738656860931,2.0,204.82,204.81,37.0728653]
[1738656861229,1.0,204.86,204.81,37.0728653]
[1738656861535,1.0,204.89,204.82,5.61436107]
[1738656861737,1.0,204.91,204.85,20.0]
[1738656862025,1.0,204.93,204.86,0.73189391]
[1738656862193,1.0,204.9,204.86,0.73189391]
[1738656862397,1.0,204.92,204.86,20.73189391]
[1738656862594,2.0,204.97,204.87,0.25098]
[1738656862833,2.0,204.97,204.95,37.0098653]
[1738656863204,2.0,204.97,204.96,37.0098653]
[1738656863406,1.0,205.0,204.96,41.8888653]
[1738656863631,1.0,205.0,204.96,4.879]
[1738656863835,1.0,205.03,204.99,37.0098653]
[1738656864133,1.0,205.03,205.02,37.0098653]
[1738656864513,2.0,205.03,205.01,37.0098653]
[1738656864707,2.0,205.03,204.99,37.0098653]
[1738656864903,1.0,205.03,205.02,37.0098653]
[1738656865110,1.0,205.05,205.02,37.0098653]
[1738656865303,1.0,205.06,205.04,37.0098653]
[1738656865504,1.0,205.09,205.05,37.0098653]
[1738656865743,1.0,205.09,205.07,37.0098653]
[1738656866341,1.0,205.09,205.05,37.0098653]
[1738656866508,1.0,205.07,205.06,37.0098653]
[1738656866702,1.0,205.07,205.05,37.0098653]
[1738656867244,1.0,205.07,205.06,37.0098653]
[1738656867424,1.0,205.07,205.05,37.0098653]
[1738656868436,1.0,205.07,205.04,37.0098653]
[1738656868937,1.0,205.11,205.06,37.0098653]
[1738656869109,1.0,205.1,205.05,20.73131297]
[1738656869448,1.0,205.1,205.09,37.0098653]
[1738656869808,1.0,205.1,205.08,41.8859653]
[1738656870005,1.0,205.1,205.09,37.0098653]
[1738656870415,1.0,205.1,205.08,37.0098653]
[1738656870717,1.0,205.1,205.09,37.0098653]
[1738656870912,1.0,205.15,205.09,37.0098653]
[1738656871135,1.0,205.15,205.07,13.66282853]
[1738656871444,2.0,205.15,205.12,37.0098653]
[1738656871822,1.0,205.15,205.13,37.0098653]
[1738656872020,1.0,205.14,205.13,37.0098653]
[1738656872220,2.03,205.21,205.13,37.0098653]
[1738656872457,2.03,205.21,205.2,37.0098653]
[1738656872753,2.03,205.21,205.19,37.0098653]
[1738656873361,1.0,205.19,205.17,37.0098653]
[1738656873524,1.0,205.17,205.15,37.0098653]
[1738656873726,1.0,205.17,205.16,41.8840653]
[1738656873932,1.0,205.2,205.16,41.8840653]
[1738656874159,0.03,205.21,205.19,37.0098653]
[1738656874451,0.03,205.21,205.2,37.0098653]
[1738656874452,1.03,205.21,205.2,37.0098653]
[1738656874836,0.03,205.21,205.2,37.0098653]
[1738656875046,0.03,205.21,205.2,74.0197306]
[1738656875235,0.03,205.21,205.2,74.75039528]
[1738656875437,0.03,205.21,205.2,37.0098653]
[1738656877259,1.0,205.29,205.23,20.0]
[1738656877421,1.0,205.31,205.29,4.8711]
[1738656877628,2.0,205.31,205.3,37.0098653]
[1738656877825,2.0,205.31,205.29,37.0098653]
[1738656878222,2.0,205.31,205.28,37.0098653]
[1738656878426,1.0,205.27,205.23,37.0098653]
[1738656878638,1.0,205.28,205.26,37.0098653]
[1738656878840,1.0,205.28,205.27,37.0098653]
[1738656879643,2.0,205.28,205.27,37.0098653]
[1738656879847,2.0,205.28,205.25,41.8817653]
[1738656880056,2.0,205.25,205.22,37.0098653]
[1738656880378,13.69282853,205.34,205.24,37.0098653]
[1738656880379,1.0,205.28,205.24,37.0098653]
[1738656880556,1.0,205.27,205.23,20.0]
[1738656880754,1.0,205.3,205.23,20.0]
[1738656880946,1.0,205.27,205.23,20.0]
[1738656881382,1.0,205.27,205.2,37.0098653]
[1738656881383,1.0,205.25,205.2,37.0098653]
[1738656881683,1.0,205.24,205.22,4.8727]
[1738656882287,1.0,205.24,205.23,37.0098653]
[1738656882651,2.0,205.24,205.22,37.0098653]
[1738656882853,1.0,205.26,205.23,37.0098653]
[1738656883047,1.0,205.3,205.25,37.0098653]
[1738656883254,1.0,205.3,205.29,37.0098653]
[1738656883590,0.03,205.31,205.29,37.0098653]
[1738656883764,0.03,205.31,205.3,37.74022433]
[1738656884752,0.03,205.31,205.3,42.61112433]
[1738656885850,0.03,205.31,205.3,79.62098963]
[1738656886454,0.03,205.34,205.33,20.0]
[1738656886679,0.03,205.34,205.33,71.40286014]
[1738656886985,0.03,205.34,205.33,76.27306014]
[1738656887366,1.0,205.41,205.36,13.66282853]
[1738656887569,1.0,205.41,205.4,37.0098653]
[1738656888563,2.0,205.41,205.39,37.0098653]
[1738656889177,2.0,205.41,205.4,37.0098653]
[1738656889472,1.0,205.41,205.4,37.0098653]